Workbook

Sheet 封面
A2: 东莞市建设工程项目
A4: 工 程 量 清 单 报 价 表
B8: 招标编号：SSZSSO12502605
B9: 工程名称：松山湖科学城至光明科学城通道（东莞段）二期工程竣（交）工验收检测、专项验收检测及初始检查
B10: 招 标 人：东莞市交通投资控股集团有限公司
B11: 代 理 人：广东明正项目管理有限公司
B14: 投标人： （企业数字证书电子签章）
B15: 投标文件递交截止时间： 年 月 日 ： 时
B16: 投标单位法定代表人或其委托代理人： （数字证书电子签章）

Sheet 报价说明（必须打印）
A3: （一）报价说明
A4: 1、清单说明
A5: （1）本工程量清单应与投标人须知、合同条款、技术标准及规范和图纸一起使用。
A6: （2）本工程量清单所列的为试验检测项目及费用名称、计量单位、工程数量，这些项目不允许投标人修改，投标人仅需填入各项目的投标综合单价。
A7: （3）本合同项下的全部费用都应包含在具有标价的工程量清单的各个单项中，没有列出的项目的费用应视为已分配到有关项目的单价和合价中。工程量清单不再重复或概列工程及材料的一般说明，在填写工程量清单的每一项的单价和合价时应认真阅读理解本招标文件的有关章节规定。
A8: 2、工程量清单费用组成
A9: （1）投标人的投标报价为综合单价，合价为综合单价×暂定数量，合价及投标总价均不作为结算依据，最终按实际完成的数量乘综合单价进行结算。
A10: 除非合同另有规定，综合单价包括投标人完成相关检测任务和按要求提供检测报告的一切费用（包含且不限于完成检测工作的人工费、设备购置使用费、进退场费、一般工作用车费、检测费用、材料费、数据处理费、报告出版费、管理费用、安全生产费用、各种税费和规费等一切费用）。
A11: （2）无论工程量是否列明，具有标价的工程量清单中的每一单项均需填写单价或合价，对承包人没有填写单价或合价的项目的费用，应视为已包含在工程量清单的其他单价或合价之中。投标书内不允许有选择性报价。
A12: （3）本合同项下的全部费用都应包含在具有标价的工程量清单的各个单项中，没有列出的项目的费用应视为已分配到有关项目的单价和合价中。

Sheet 汇总表
A1: 工程量清单报价汇总表
A2: 工程名称：松山湖科学城至光明科学城通道（东莞段）二期工程竣（交）工验收检测、专项验收检测及初始检查 | D2: 第1页，共1页
A3: 序号 | B3: 项目类型 | C3: 金额（元） | D3: 备注
A4: 1 | B4: ='竣（交）工检测'!A1 -> 松山湖科学城至光明科学城通道（东莞段）二期工程-竣（交）工验收检测 | C4: ='竣（交）工检测'!I217 -> 0
A5: 2 | B5: =业主专项验收!A1 -> 松山湖科学城至光明科学城通道（东莞段）二期工程-专项验收检测 | C5: =业主专项验收!I72 -> 0
A6: 3 | B6: 投标报价合计（小写） | C6: =SUM(C4:C5) -> 0.00
B7: 投标报价合计（大写） | C7: =TEXT(C6,"[DBNum2][$-804]G/通用格式")&"元整" -> 零元整
A10: 投标人企业数字证书电子签章： 法定代表人或其委托代理人数字证书电子签章：

Sheet 竣（交）工检测
A1: 松山湖科学城至光明科学城通道（东莞段）二期工程-竣（交）工验收检测
A2: 序号 | B2: 检测项目 | C2: 检测方法 | D2: 检测频率 | E2: 图纸工程数量 | F2: 单位 | G2: 检测数量 | H2: 单价 | I2: 金额（元） | J2: 备注 | K2: 问题列 | L2: 回复意见 | N2: 单价报价上限（元）
A3: 一 | B3: 路基工程
A4: 1 | B4: 路基压实度 | C4: 灌砂法 | D4: 东交函〔2020〕121号。1点/公里/车道，每合同段≮10点 | E4: 一级公路，路基共约663m，双向6车道，检测10点 | F4: 点 | G4: 10 | I4: =ROUND(G4*H4,0) -> 0 | J4: P3页表1第2项 | N4: =O4*50% -> 40 | O4: 80
A5: 2 | B5: 路基弯沉 | C5: 贝克曼梁 | D5: 东交函〔2020〕121号。≮40点/公里/半幅（按两车道计），每评定单元检测≮40点，各车道交替检测 | E5: 一级公路，路基共约663m，双向6车道，检测40*3*2=240点 | F5: 点 | G5: 240 | I5: =ROUND(G5*H5,0) -> 0 | J5: 2012年9月21日会议纪要第三点 | K5: 合同段路基为6段（CL1K2+507~CL1K2+546，CL1K2+880~CL1K3+100，CL1K3+590~CL1K3+767，CL1K3+977~CL1K4+030，CL1K4+200~CL1K4+335，CL1K4+600~CL1K4+752.952），6个评定单位检测点数为240*6=1140 | L5: 本项目路基总长不超过一公里，建议不要分段计算检测数量，且各段路基长短不均，应采取整体评价方式落实检测，即使按分段的话也是每段检测40点即可，共6段，共检测40*6=240点。 | N5: =O5*50% -> 15 | O5: 30
A6: 3 | B6: 挡土墙砼强度 | C6: 回弹法 | D6: 东交函〔2020〕121号。抽查≮支挡工程总数的10%且每种类型≮1处,≮10测区/处 | E6: 挡墙共2处，检测20测区 | F6: 测区 | G6: 20 | I6: 0 | J6: P16页表4第1项 | N6: 30 | O6: 60
A7: 4 | B7: 挡土墙砼碳化深度 | C7: 凿孔法 | F7: 处 | G7: 20 | I7: 0 | J7: P17页表1第3项 | N7: 15 | O7: 30
A8: 5 | B8: 挡土墙结构尺寸 | C8: 尺量 | D8: 东交函〔2020〕121号。抽查≮支挡工程总数的10%且每种类型≮1处，≮1断面/处 | E8: 挡墙共2处，检测2断面 | F8: 断面 | G8: 2 | I8: 0 | J8: P16页表3第1项 | N8: 5 | O8: 10
A9: 6 | B9: 砼护栏强度 | C9: 回弹法 | D9: 东交函〔2020〕121号。抽查≮支挡工程总数的10%且每种类型≮1处,≮10测区/处 | E9: 挡墙上砼护栏共1处56.8m，检测10测区 | F9: 测区 | G9: 10 | I9: 0 | J9: P18页表2第3项 | N9: 25 | O9: 50
A10: 7 | B10: 砼护栏碳化深度 | C10: 凿孔法 | F10: 处 | G10: 10 | I10: 0 | J10: P17页表1第3项 | N10: 15 | O10: 30
A11: 8 | B11: 砼护栏断面尺寸 | C11: 尺量 | D11: 东交函〔2020〕121号。抽查≮支挡工程总数的10%且每种类型≮1处，≮1断面/处 | E11: 挡墙上砼护栏共1处56.8m，检测1断面 | F11: 断面 | G11: 1 | I11: 0 | J11: P16页表3第1项 | N11: 5 | O11: 10
A12: 9 | B12: 边坡坡度 | C12: 尺量 | D12: 东交函〔2020〕121号。≮1处/公里，每处两侧各测≮2个坡面。 | E12: 边坡共10处（含应急池及隧道洞口），检测10处 | F12: 处 | G12: 10 | I12: 0 | J12: P15页表1第1项 | N12: 10 | O12: 20
A13: 10 | B13: 格构梁砼强度 | C13: 回弹法 | D13: 东交函〔2020〕121号。抽查≮支挡工程总数的10%且每种类型≮1处,≮10测区/处 | E13: 框格梁结构共1处（2#隧道口），检测1处10测区 | F13: 测区 | G13: 10 | I13: 0 | J13: P16页表4第1项 | K13: 2处框格梁（CL1K2+507-CL1K2+546，CL1K3+629-CL1K3+767），共20个测区。 | L13: 按验收依据只进行抽检，且本项目框格梁结构一致，工艺一致，验收时只检测一处即可，建议该项检测不做修改 | N13: 30 | O13: 60
A14: 11 | B14: 格构梁砼碳化深度 | C14: 凿孔法 | F14: 处 | G14: 10 | I14: 0 | J14: P17页表1第3项 | N14: 15 | O14: 30
A15: 12 | B15: 格构梁结构尺寸 | C15: 尺量 | D15: 东交函〔2020〕121号。抽查≮支挡工程总数的10%且每种类型≮1处，≮1断面/处 | E15: 框格梁结构共1处（2#隧道口），检测1断面 | F15: 断面 | G15: 1 | I15: 0 | J15: P16页表3第1项 | N15: 5 | O15: 10
A16: 13 | B16: 排水工程断面尺寸 | C16: 尺量 | D16: 东交函〔2020〕121号。每处抽≮2个断面，每合同段≮3处（每公里做1处） | E16: 排水沟共1689m，检测2处，4个断面。 | F16: 断面 | G16: 4 | I16: 0 | J16: 参照桥涵检测项目P16页表3第1项 | K16: 3处排水沟（C1K2+880-0C1K3+100，C1K4+200-C1K4+335，C1K2+880-C1K3+123.754），检测3处，6个断面 | L16: 同上，按项目总长度进行抽检即可，建议不修改 | N16: 5 | O16: 10
A17: 14 | B17: 排水工程铺砌厚度 | C17: 尺量 | D17: 东交函〔2020〕121号。每处抽≮1个断面，每合同段≮3处。 | E17: 排水沟共1689m，检测2点。 | F17: 点 | G17: 2 | I17: 0 | J17: 参照基层、底基层项目P3页表2第4项 | K17: 3处排水沟（C1K2+880-0C1K3+100，C1K4+200-C1K4+335，C1K2+880-C1K3+123.754），检测3个断面 | N17: 5 | O17: 10
A18: 15 | B18: 涵洞砼强度 | C18: 回弹法 | D18: 东交函〔2020〕121号。≮10测区/处 | E18: 共2道，检测20个测区。 | F18: 测区 | G18: 20 | I18: 0 | J18: 参照桥涵检测项目P16页表4第1项 | K18: 项目工程2涵洞，其中一道为管涵，采用预制管道，是否检测回弹，请核实。 | L18: 本项目圆管涵直径为1.8m，也属于大型圬工结构，检测要进行检测 | N18: 30 | O18: 60
A19: 16 | B19: 涵洞砼碳化深度 | C19: 凿孔法 | D19: 同上 | E19: 同上 | F19: 处 | G19: 20 | I19: 0 | J19: 参照P17页表1第3项 | N19: 15 | O19: 30
A20: 17 | B20: 涵洞结构尺寸 | C20: 尺量 | D20: 东交函〔2020〕121号。每道5-10点 | E20: 共2道，检测20点。 | F20: 点 | G20: 20 | I20: 0 | J20: 参照桥涵检测项目P16页表3第1项 | N20: 5 | O20: 10
A21: 18 | B21: 涵洞外观检查 | C21: 外观检查 | D21: 东交函〔2020〕121号。全面检查 | E21: 共2道，检测2道。 | F21: 座 | G21: 2 | I21: 0 | J21: 参照桥涵检测项目P5页表2第1项 | N21: 400 | O21: 800
A22: 二 | B22: 路面工程
A23: 1 | B23: 5%水泥稳定级配碎石基层厚度和完整性 | C23: 钻芯法 | D23: 东交函〔2020〕121号。1点/公里/双车道 | E23: 一级公路，（18+18）cm厚5%水泥稳定级配碎石基层共约793m，双向6车道，每层检测3点，共检测6点 | F23: 点/层 | G23: 6 | I23: 0 | J23: P3页表2基层、底基层第4项 | N23: =O23*50% -> 100 | O23: 200
A24: 2 | B24: 沥青路面压实度 | C24: 钻芯法 | D24: 东交函〔2020〕121号。主线、连接线：1处/公里/半幅；每互通3点。 | E24: 一级公路，共约793m，双向6车道，检测6点 | F24: 点 | G24: 6 | I24: 0 | J24: P4页表1第3项 | N24: 50 | O24: 100
A25: 3 | B25: 沥青路面厚度 | C25: 钻芯法 | E25: 同上 | F25: 点 | G25: 6 | I25: 0 | J25: P4页表1第2项 | N25: 200 | O25: 400
A26: 4 | B26: 沥青路面弯沉* | C26: 贝克曼梁 | D26: 东交函〔2020〕121号。≮40点/评定单元（按路基段路线长度1公里计），各车道交替检测 | E26: 一级公路，共约793m，双向6车道，检测40*2=80点 | F26: 点 | G26: 80 | I26: 0 | J26: 2012年9月21日会议纪要第二点 | N26: 15 | O26: 30
A27: 5 | B27: 路面平整度* | C27: 平整度仪 | D27: 东交函〔2020〕121号。平整度仪：逐车道连续检测。 | E27: 一级公路，共约793m，双向6车道，检测0.8*6=4.8km | F27: km/车道 | G27: 4.8 | I27: 0 | J27: P4表1第1项 | N27: 50 | O27: 100
A28: 6 | B28: 路面抗滑构造深度* | C28: 铺砂法 | D28: 东交函〔2020〕121号。2处/公里（3点/处），每合同段≮4处。 | E28: 一级公路，共约793m，双向6车道，检测2处，6点 | F28: 点 | G28: 6 | I28: 0 | J28: P4页表1第5项 | N28: 15 | O28: 30
A29: 7 | B29: 沥青路面抗滑摩擦系数* | C29: 摆式摩擦仪 | D29: 东交函〔2020〕121号。2处/公里（3点/处），每合同段≮4处 | E29: 同上 | F29: 点 | G29: 6 | I29: 0 | N29: 22.5 | O29: 45
A30: 8 | B30: 沥青路面横向力系数* | C30: 横向力系数检测车 | D30: 东交函〔2020〕121号。逐车道连续检测 | E30: 一级公路，共约793m，双向6车道，检测0.8*6=4.8km | F30: km/车道 | G30: 4.8 | I30: 0 | N30: 400 | O30: 800
A31: 9 | B31: 沥青路面车辙* | C31: 横断面尺法 | D31: 东交函〔2020〕121号。≮1断面/车道/公里，每合同段≮4断面。 | E31: 一级公路，共约793m，双向6车道，检测6断面 | F31: 断面 | G31: 6 | I31: 0 | J31: P15页表2第4项 | N31: 15 | O31: 30
A32: 10 | B32: 沥青路面渗水系数 | C32: 渗水仪 | D32: 东交函〔2020〕121号。1处/公里/半幅；互通：1点。每处≮1点，每合同段≮4点。 | E32: 一级公路，共约793m，双向6车道，检测2处，2点 | F32: 点 | G32: 2 | I32: 0 | J32: P15页表2第5项 | N32: 40 | O32: 80
A33: 11 | B33: 沥青路面外观检查* | C33: 人工 | D33: 东交函〔2020〕121号。全面检查 | E33: 一级公路，共约793m，双向6车道，检测0.8*6=4.8km | F33: km/车道 | G33: 4.8 | I33: 0 | J33: P15页表2第7项 | N33: 70 | O33: 140
A34: 12 | B34: 路面横坡 | C34: 水准仪 | D34: 东交函〔2020〕121号。主线、连接线：1处/公里/半幅；互通：3处。（2断面/处） | E34: 一级公路，共约793m，双向6车道，检测2处，4断面 | F34: 断面 | G34: 4 | I34: 0 | J34: P4页表1第10项 | N34: 5 | O34: 10
A35: 三 | B35: 桥梁工程
A36: 一） | B36: 金佛大桥
A37: （一） | B37: 桥梁工程
A38: 1 | B38: 主要结构尺寸量测 | C38: 尺量 | D38: 东交函〔2020〕121号。下部：抽查的每个墩台：立柱间距测1点；圆柱2根，各测周长1点；方形柱（方形墩）2根，每墩长、宽各测1点；桥台宽度测2点。盖梁、台帽：按上述抽查墩台总数的30%抽检，且不少于2个。每个盖梁宽度、高度各测1点；每个台帽高度测2点。上部：预制梁板：每座桥检测10~20片梁板，每片梁板测底宽、梁高各1点。抽查孔的现（悬）浇梁板：检测两侧腹板高度各2点，检测底板宽度2点 | E38: 下部：35墩台，检测35*20%=7个，7*5=35点； 盖梁31个，检测2个，2*2=4点。 上部：17孔，检测5孔，检测10*2=20点。 | F38: 点 | G38: 59 | I38: 0 | J38: P16页表3第1项 | K38: 金佛大桥下部为75个墩台 | L38: 下部结构的算法不能按每墩台的立柱（方墩）的个数作为一个墩台结构，例如一个墩台有4根立柱，它也只能算一个墩台，不过要分左右幅桥梁计算。此项不做修改 | N38: 5 | O38: 10
A39: 2 | B39: 墩台垂直度量测 | C39: 尺量 | D39: 东交函〔2020〕121号。抽查的每个墩柱：立柱或墩身抽检2根，每根柱或墩按横桥向、顺桥向检测。 | E39: 共35个墩台，检测7墩 | F39: 墩 | G39: 7 | I39: 0 | J39: P16页表3第2项（每个墩台测两个方向） | K39: 金佛大桥下部为75个墩台 | N39: 10 | O39: 20
A40: 3 | B40: 结构混凝土强度检测 | C40: 回弹法 | D40: 东交函〔2020〕121号。下部：抽查的每个墩台：抽2个构件，各1个测区。仅1个构件时，该构件测2个测区。盖梁、台帽：按上述抽查墩台总数的30%抽检，且不少于2个，各1个测区。每座桥墩台（含盖梁、台帽）砼强度总测区不少于10个。上部：抽查孔的预制梁板：每孔检测4~6片梁板，共10~12个测区。抽查孔的现（悬）浇梁板：检测两侧腹板各4测区，检测底板2个测区，共10个测区。 | E40: 下部：35墩台，检测7个，7*2=14测区； 盖梁31个，检测2个，2*1=2测区。 上部：17孔，检测5孔，检测5*10=50测区。 | F40: 测区 | G40: 66 | I40: 0 | J40: P16页表4第1项 | K40: 金佛大桥下部为75个墩台 | N40: 30 | O40: 60
A41: 4 | B41: 结构混凝土碳化深度检测 | C41: 凿孔法 | F41: 处 | G41: 66 | I41: 0 | J41: P17页表1第3项 | N41: 15 | O41: 30
A42: 5 | B42: 钢筋间距和保护层厚度检测 | C42: 电磁感应法 | D42: 东交函〔2020〕121号。下部：抽查的每个墩台：立柱或墩身抽检1根，对称检测4个面，每面5点；台身检测1处，每处10点；盖梁、台帽：按上述抽查墩台总数的30%抽检，且不少于2个。每个盖梁、台帽抽查的检测2处，每处测10点。（每10点为一个测区）。上部：抽查孔的预制板：每孔检测2片梁板，每片梁板测2处，每处测5点。抽查孔的现（悬）浇梁板：检测腹板、底板各1处，每处10点。（每10点为一个测区） | E42: 下部：35墩台，检测7个，7*20=140点； 盖梁31个，检测2个，2*20=40点。 上部：17孔，检测5孔，检测5*20=100点。 共280个点，即28个测区。 | F42: 测区 | G42: 28 | I42: 0 | J42: P17页表1第5项 | N42: 50 | O42: 100
A43: 6 | B43: 砼护栏强度 | C43: 回弹法 | D43: 东交函〔2020〕121号。抽查不少于2处/公里，每处不少于2个测区，测区总数不少于10个 | E43: 桥长496m，检测10个测区（处） | F43: 测区 | G43: 10 | I43: 0 | J43: P18页表2第3项 | N43: 25 | O43: 50
A44: 7 | B44: 砼护栏碳化深度 | C44: 凿孔法 | F44: 处 | G44: 10 | I44: 0 | J44: P17页表1第3项 | N44: 15 | O44: 30
A45: 8 | B45: 砼护栏断面尺寸 | C45: 尺量 | D45: 东交函〔2020〕121号。抽查不少于2处/公里，每处测厚度、高度各一点，每合同段不少于4处 | E45: 桥长496m，检测2处 | F45: 处 | G45: 2 | I45: 0 | J45: P18页表2第3项 | N45: 5 | O45: 10
A46: 9 | B46: 横坡 | C46: 水准仪 | D46: 东交函〔2020〕121号。中桥1处；300m以下大桥每100m单幅1处，300m以上大桥每增加300m以内单幅增加1处，以此类推。（2断面/处） | E46: 金佛大桥全长496m，双向6车道，检测8处,2*8=16断面 | F46: 断面 | G46: 16 | I46: 0 | J46: P4页表1第10项 | N46: 5 | O46: 10
A47: 10 | B47: 沥青桥面渗水系数 | C47: 渗水仪 | D47: 东交函〔2020〕121号。100~1000米大桥1点，大于1000米桥梁每增加1000米以内单幅增加1点，以此类推。 | E47: 金佛大桥全长496m，双向6车道，检测1点 | F47: 点 | G47: 1 | I47: 0 | J47: P15页表2第5项 | N47: 40 | O47: 80
A48: 11 | B48: 沥青桥面铺装厚度及压实度 | C48: 钻芯法 | D48: 东交函〔2020〕121号。钻芯法：500m以下桥梁单幅1处，500m以上大桥每增加500m以内单幅增加1处，以此类推。（1点/处） | E48: 金佛大桥全长496m，双向6车道，检测2点 | F48: 点 | G48: 2 | I48: 0 | J48: P4页表1第2项、第3项 | N48: 250 | O48: 500
A49: 12 | B49: 桥面铺装平整度 * | C49: 平整度仪 | D49: 东交函〔2020〕121号。平整度仪：逐车道连续检测。3m直尺：中桥单幅抽查2处，匝道大桥单幅3-5处。 | E49: 金佛大桥全长496m，双向6车道，检测0.5*6=3km | F49: km/车道 | G49: 3 | I49: 0 | J49: P4表1第1项 | N49: 50 | O49: 100
A50: 13 | B50: 桥面抗滑构造深度* | C50: 铺砂法 | D50: 东交函〔2020〕121号。构造深度：单幅中桥1处；300m以下大桥单幅不少于2处，300m以上大桥每增加300m以内单幅增加1处，以此类推。（3点/处） | E50: 金佛大桥全长496m，双向6车道，检测6处,6*3=18点 | F50: 点 | G50: 18 | I50: 0 | J50: P4页表1第5项 | N50: 15 | O50: 30
A51: 14 | B51: 桥面抗滑横向力系数* | C51: 横向力系数检测车 | D51: 东交函〔2020〕121号。横向力系数：逐车道连续检测。 | E51: 金佛大桥全长496m，双向6车道，检测0.5*6=3km | F51: km/车道 | G51: 3 | I51: 0 | J51: P4页表1第5项 | N51: 400 | O51: 800
A52: 15 | B52: 外观检查 * | C52: 人工 | D52: 东交函〔2020〕121号。全面检查 | E52: 金佛大桥全长496m，双向6车道，为简支梁桥，检测496m | F52: 米 | G52: 496 | I52: 0 | J52: P5页表2 | N52: 30 | O52: 60
A53: 二） | B53: 罗田1#桥
A54: （一） | B54: 桥梁工程
A55: 1 | B55: 主要结构尺寸量测 | C55: 尺量 | D55: 东交函〔2020〕121号。下部：抽查的每个墩台：立柱间距测1点；圆柱2根，各测周长1点；方形柱（方形墩）2根，每墩长、宽各测1点；桥台宽度测2点。盖梁、台帽：按上述抽查墩台总数的30%抽检，且不少于2个。每个盖梁宽度、高度各测1点；每个台帽高度测2点。上部：预制梁板：每座桥检测10~20片梁板，每片梁板测底宽、梁高各1点。抽查孔的现（悬）浇梁板：检测两侧腹板高度各2点，检测底板宽度2点 | E55: 下部：16墩台，检测5个，5*5=25点； 盖梁12个，检测2个，2*2=4点。 上部：7孔，检测5孔，检测10*2=20点。 | F55: 点 | G55: 49 | I55: 0 | J55: P16页表3第1项 | N55: =O55*50% -> 5 | O55: 10
A56: 2 | B56: 墩台垂直度量测 | C56: 尺量 | D56: 东交函〔2020〕121号。抽查的每个墩柱：立柱或墩身抽检2根，每根柱或墩按横桥向、顺桥向检测。 | E56: 共16个墩台，检测5墩 | F56: 墩 | G56: 5 | I56: 0 | J56: P16页表3第2项（每个墩台测两个方向） | N56: 10 | O56: 20
A57: 3 | B57: 结构混凝土强度检测 | C57: 回弹法 | D57: 东交函〔2020〕121号。下部：抽查的每个墩台：抽2个构件，各1个测区。仅1个构件时，该构件测2个测区。盖梁、台帽：按上述抽查墩台总数的30%抽检，且不少于2个，各1个测区。每座桥墩台（含盖梁、台帽）砼强度总测区不少于10个。上部：抽查孔的预制梁板：每孔检测4~6片梁板，共10~12个测区。抽查孔的现（悬）浇梁板：检测两侧腹板各4测区，检测底板2个测区，共10个测区。 | E57: 下部：16墩台，检测5个，5*2=10测区； 盖梁12个，检测2个，2*1=2测区。 上部：7孔，检测5孔，检测5*10=50测区。 | F57: 测区 | G57: 64 | I57: 0 | J57: P16页表4第1项 | N57: 30 | O57: 60
A58: 4 | B58: 结构混凝土碳化深度检测 | C58: 凿孔法 | F58: 处 | G58: 64 | I58: 0 | J58: P17页表1第3项 | N58: 15 | O58: 30
A59: 5 | B59: 钢筋间距和保护层厚度检测 | C59: 电磁感应法 | D59: 东交函〔2020〕121号。下部：抽查的每个墩台：立柱或墩身抽检1根，对称检测4个面，每面5点；台身检测1处，每处10点；盖梁、台帽：按上述抽查墩台总数的30%抽检，且不少于2个。每个盖梁、台帽抽查的检测2处，每处测10点。（每10点为一个测区）。上部：抽查孔的预制板：每孔检测2片梁板，每片梁板测2处，每处测5点。抽查孔的现（悬）浇梁板：检测腹板、底板各1处，每处10点。（每10点为一个测区） | E59: 下部：16墩台，检测5个，5*20=100点； 盖梁12个，检测2个，2*20=40点。 上部：7孔，检测5孔，检测5*20=100点。 共240个点，即24个测区。 | F59: 测区 | G59: 24 | I59: 0 | J59: P17页表1第5项 | N59: 50 | O59: 100
A60: 6 | B60: 砼护栏强度 | C60: 回弹法 | D60: 东交函〔2020〕121号。抽查不少于2处/公里，每处不少于2个测区，测区总数不少于10个 | E60: 桥长216.4m，检测10个测区（处） | F60: 测区 | G60: 10 | I60: 0 | J60: P18页表2第3项 | N60: 25 | O60: 50
A61: 7 | B61: 砼护栏碳化深度 | C61: 凿孔法 | F61: 处 | G61: 10 | I61: 0 | J61: P17页表1第3项 | N61: 15 | O61: 30
A62: 8 | B62: 砼护栏断面尺寸 | C62: 尺量 | D62: 东交函〔2020〕121号。抽查不少于2处/公里，每处测厚度、高度各一点，每合同段不少于4处 | E62: 桥长216.4m，检测2处 | F62: 处 | G62: 2 | I62: 0 | J62: P18页表2第3项 | N62: 5 | O62: 10
A63: 9 | B63: 横坡 | C63: 水准仪 | D63: 东交函〔2020〕121号。中桥1处；300m以下大桥每100m单幅1处，300m以上大桥每增加300m以内单幅增加1处，以此类推。（2断面/处） | E63: 罗田1#桥全长216.4m，双向6车道，检测6处,2*6=12断面 | F63: 断面 | G63: 12 | I63: 0 | J63: P4页表1第10项 | N63: 5 | O63: 10
A64: 10 | B64: 沥青桥面渗水系数 | C64: 渗水仪 | D64: 东交函〔2020〕121号。100~1000米大桥1点，大于1000米桥梁每增加1000米以内单幅增加1点，以此类推。 | E64: 罗田1#桥全长216.4m，双向6车道，检测1点 | F64: 点 | G64: 1 | I64: 0 | J64: P15页表2第5项 | N64: 40 | O64: 80
A65: 11 | B65: 沥青桥面铺装厚度及压实度 | C65: 钻芯法 | D65: 东交函〔2020〕121号。钻芯法：500m以下桥梁单幅1处，500m以上大桥每增加500m以内单幅增加1处，以此类推。（1点/处） | E65: 罗田1#桥全长216.4m，双向6车道，检测2点 | F65: 点 | G65: 2 | I65: 0 | J65: P4页表1第2项、第3项 | N65: 250 | O65: 500
A66: 12 | B66: 桥面铺装平整度 * | C66: 平整度仪 | D66: 东交函〔2020〕121号。平整度仪：逐车道连续检测。3m直尺：中桥单幅抽查2处，匝道大桥单幅3-5处。 | E66: 罗田1#桥全长216.4m，双向6车道，检测0.2*6=1.2km | F66: km/车道 | G66: 1.2 | I66: 0 | J66: P4表1第1项 | N66: 50 | O66: 100
A67: 13 | B67: 桥面抗滑构造深度* | C67: 铺砂法 | D67: 东交函〔2020〕121号。构造深度：单幅中桥1处；300m以下大桥单幅不少于2处，300m以上大桥每增加300m以内单幅增加1处，以此类推。（3点/处） | E67: 罗田1#桥全长216.4m，双向6车道，检测4处,4*3=12点 | F67: 点 | G67: 12 | I67: 0 | J67: P4页表1第5项 | N67: 15 | O67: 30
A68: 14 | B68: 桥面抗滑横向力系数* | C68: 横向力系数检测车 | D68: 东交函〔2020〕121号。横向力系数：逐车道连续检测。 | E68: 罗田1#桥全长216.4m，双向6车道，检测0.2*6=1.2km | F68: km/车道 | G68: 1.2 | I68: 0 | J68: P4页表1第5项 | N68: 400 | O68: 800
A69: 15 | B69: 外观检查 * | C69: 人工 | D69: 东交函〔2020〕121号。全面检查 | E69: 罗田1#桥全长216.4m，双向6车道，为简支梁桥，检测216.4m | F69: 米 | G69: 216.4 | I69: =ROUND(G69*H69,0) -> 0 | J69: P5页表2 | N69: 30 | O69: 60
A70: 三） | B70: 罗田2#桥
A71: （一） | B71: 桥梁工程
A72: 1 | B72: 主要结构尺寸量测 | C72: 尺量 | D72: 东交函〔2020〕121号。下部：抽查的每个墩台：立柱间距测1点；圆柱2根，各测周长1点；方形柱（方形墩）2根，每墩长、宽各测1点；桥台宽度测2点。盖梁、台帽：按上述抽查墩台总数的30%抽检，且不少于2个。每个盖梁宽度、高度各测1点；每个台帽高度测2点。上部：预制梁板：每座桥检测10~20片梁板，每片梁板测底宽、梁高各1点。抽查孔的现（悬）浇梁板：检测两侧腹板高度各2点，检测底板宽度2点 | E72: 下部：17墩台，检测5个，5*5=25点； 盖梁13个，检测2个，2*2=4点。 上部：9孔，检测5孔，检测10*2=20点。 | F72: 点 | G72: 49 | I72: 0 | J72: P16页表3第1项 | N72: 5 | O72: 10
A73: 2 | B73: 墩台垂直度量测 | C73: 尺量 | D73: 东交函〔2020〕121号。抽查的每个墩柱：立柱或墩身抽检2根，每根柱或墩按横桥向、顺桥向检测。 | E73: 共17个墩台，检测5墩 | F73: 墩 | G73: 5 | I73: 0 | J73: P16页表3第2项（每个墩台测两个方向） | N73: 10 | O73: 20
A74: 3 | B74: 结构混凝土强度检测 | C74: 回弹法 | D74: 东交函〔2020〕121号。下部：抽查的每个墩台：抽2个构件，各1个测区。仅1个构件时，该构件测2个测区。盖梁、台帽：按上述抽查墩台总数的30%抽检，且不少于2个，各1个测区。每座桥墩台（含盖梁、台帽）砼强度总测区不少于10个。上部：抽查孔的预制梁板：每孔检测4~6片梁板，共10~12个测区。抽查孔的现（悬）浇梁板：检测两侧腹板各4测区，检测底板2个测区，共10个测区。 | E74: 下部：17墩台，检测5个，5*2=10测区； 盖梁13个，检测2个，2*1=2测区。 上部：9孔，检测5孔，检测5*10=50测区。 | F74: 测区 | G74: 64 | I74: 0 | J74: P16页表4第1项 | N74: 30 | O74: 60
A75: 4 | B75: 结构混凝土碳化深度检测 | C75: 凿孔法 | F75: 处 | G75: 64 | I75: 0 | J75: P17页表1第3项 | N75: 15 | O75: 30
A76: 5 | B76: 钢筋间距和保护层厚度检测 | C76: 电磁感应法 | D76: 东交函〔2020〕121号。下部：抽查的每个墩台：立柱或墩身抽检1根，对称检测4个面，每面5点；台身检测1处，每处10点；盖梁、台帽：按上述抽查墩台总数的30%抽检，且不少于2个。每个盖梁、台帽抽查的检测2处，每处测10点。（每10点为一个测区）。上部：抽查孔的预制板：每孔检测2片梁板，每片梁板测2处，每处测5点。抽查孔的现（悬）浇梁板：检测腹板、底板各1处，每处10点。（每10点为一个测区） | E76: 下部：17墩台，检测5个，5*20=100点； 盖梁13个，检测2个，2*20=40点。 上部：9孔，检测5孔，检测5*20=100点。 共240个点，即24个测区。 | F76: 测区 | G76: 24 | I76: 0 | J76: P17页表1第5项 | N76: 50 | O76: 100
A77: 6 | B77: 砼护栏强度 | C77: 回弹法 | D77: 东交函〔2020〕121号。抽查不少于2处/公里，每处不少于2个测区，测区总数不少于10个 | E77: 桥长276.4m，检测10个测区（处） | F77: 测区 | G77: 10 | I77: 0 | J77: P18页表2第3项 | N77: 25 | O77: 50
A78: 7 | B78: 砼护栏碳化深度 | C78: 凿孔法 | F78: 处 | G78: 10 | I78: 0 | J78: P17页表1第3项 | N78: 15 | O78: 30
A79: 8 | B79: 砼护栏断面尺寸 | C79: 尺量 | D79: 东交函〔2020〕121号。抽查不少于2处/公里，每处测厚度、高度各一点，每合同段不少于4处 | E79: 桥长276.4m，检测2处 | F79: 处 | G79: 2 | I79: 0 | J79: P18页表2第3项 | N79: 5 | O79: 10
A80: 9 | B80: 横坡 | C80: 水准仪 | D80: 东交函〔2020〕121号。中桥1处；300m以下大桥每100m单幅1处，300m以上大桥每增加300m以内单幅增加1处，以此类推。（2断面/处） | E80: 罗田2#桥全长276.4m，双向6车道，检测6处,2*6=12断面 | F80: 断面 | G80: 12 | I80: 0 | J80: P4页表1第10项 | N80: 5 | O80: 10
A81: 10 | B81: 沥青桥面渗水系数 | C81: 渗水仪 | D81: 东交函〔2020〕121号。100~1000米大桥1点，大于1000米桥梁每增加1000米以内单幅增加1点，以此类推。 | E81: 罗田2#桥全长276.4m，双向6车道，检测1点 | F81: 点 | G81: 1 | I81: 0 | J81: P15页表2第5项 | N81: 40 | O81: 80
A82: 11 | B82: 沥青桥面铺装厚度及压实度 | C82: 钻芯法 | D82: 东交函〔2020〕121号。钻芯法：500m以下桥梁单幅1处，500m以上大桥每增加500m以内单幅增加1处，以此类推。（1点/处） | E82: 罗田2#桥全长276.4m，双向6车道，检测2点 | F82: 点 | G82: 2 | I82: 0 | J82: P4页表1第2项、第3项 | N82: 250 | O82: 500
A83: 12 | B83: 桥面铺装平整度 * | C83: 平整度仪 | D83: 东交函〔2020〕121号。平整度仪：逐车道连续检测。3m直尺：中桥单幅抽查2处，匝道大桥单幅3-5处。 | E83: 罗田2#桥全长276.4m，双向6车道，检测0.3*6=1.8km | F83: km/车道 | G83: 1.8 | I83: 0 | J83: P4页表1第1项 | N83: 50 | O83: 100
A84: 13 | B84: 桥面抗滑构造深度* | C84: 铺砂法 | D84: 东交函〔2020〕121号。构造深度：单幅中桥1处；300m以下大桥单幅不少于2处，300m以上大桥每增加300m以内单幅增加1处，以此类推。（3点/处） | E84: 罗田2#桥全长276.4m，双向6车道，检测4处,4*3=12点 | F84: 点 | G84: 12 | I84: 0 | J84: P4页表1第5项 | N84: 15 | O84: 30
A85: 14 | B85: 桥面抗滑横向力系数* | C85: 横向力系数检测车 | D85: 东交函〔2020〕121号。横向力系数：逐车道连续检测。 | E85: 罗田2#桥全长276.4m，双向6车道，检测0.3*6=1.8km | F85: km/车道 | G85: 1.8 | I85: 0 | J85: P4页表1第5项 | N85: 400 | O85: 800
A86: 15 | B86: 外观检查 * | C86: 人工 | D86: 东交函〔2020〕121号。全面检查 | E86: 罗田2#桥全长276.4m，双向6车道，为简支梁桥，检测276.4m | F86: 米 | G86: 276.4 | I86: 0 | J86: P5页表2 | N86: =O86*50% -> 30 | O86: 60
A87: 四） | B87: 罗田3#桥
A88: （一） | B88: 桥梁工程
A89: 1 | B89: 主要结构尺寸量测 | C89: 尺量 | D89: 东交函〔2020〕121号。下部：抽查的每个墩台：立柱间距测1点；圆柱2根，各测周长1点；方形柱（方形墩）2根，每墩长、宽各测1点；桥台宽度测2点。盖梁、台帽：按上述抽查墩台总数的30%抽检，且不少于2个。每个盖梁宽度、高度各测1点；每个台帽高度测2点。上部：预制梁板：每座桥检测10~20片梁板，每片梁板测底宽、梁高各1点。抽查孔的现（悬）浇梁板：检测两侧腹板高度各2点，检测底板宽度2点 | E89: 下部：18墩台，检测5个，5*5=25点； 盖梁14个，检测2个，2*2=4点。 上部：11孔，检测5孔，检测10*2=20点。 | F89: 点 | G89: 49 | I89: 0 | J89: P16页表3第1项 | N89: 5 | O89: 10
A90: 2 | B90: 墩台垂直度量测 | C90: 尺量 | D90: 东交函〔2020〕121号。抽查的每个墩柱：立柱或墩身抽检2根，每根柱或墩按横桥向、顺桥向检测。 | E90: 共18个墩台，检测5墩 | F90: 墩 | G90: 5 | I90: 0 | J90: P16页表3第2项（每个墩台测两个方向） | N90: 10 | O90: 20
A91: 3 | B91: 结构混凝土强度检测 | C91: 回弹法 | D91: 东交函〔2020〕121号。下部：抽查的每个墩台：抽2个构件，各1个测区。仅1个构件时，该构件测2个测区。盖梁、台帽：按上述抽查墩台总数的30%抽检，且不少于2个，各1个测区。每座桥墩台（含盖梁、台帽）砼强度总测区不少于10个。上部：抽查孔的预制梁板：每孔检测4~6片梁板，共10~12个测区。抽查孔的现（悬）浇梁板：检测两侧腹板各4测区，检测底板2个测区，共10个测区。 | E91: 下部：18墩台，检测5个，5*2=10测区； 盖梁14个，检测2个，2*1=2测区。 上部：11孔，检测5孔，检测5*10=50测区。 | F91: 测区 | G91: 64 | I91: 0 | J91: P16页表4第1项 | N91: 30 | O91: 60
A92: 4 | B92: 结构混凝土碳化深度检测 | C92: 凿孔法 | F92: 处 | G92: 64 | I92: 0 | J92: P17页表1第3项 | N92: 15 | O92: 30
A93: 5 | B93: 钢筋间距和保护层厚度检测 | C93: 电磁感应法 | D93: 东交函〔2020〕121号。下部：抽查的每个墩台：立柱或墩身抽检1根，对称检测4个面，每面5点；台身检测1处，每处10点；盖梁、台帽：按上述抽查墩台总数的30%抽检，且不少于2个。每个盖梁、台帽抽查的检测2处，每处测10点。（每10点为一个测区）。上部：抽查孔的预制板：每孔检测2片梁板，每片梁板测2处，每处测5点。抽查孔的现（悬）浇梁板：检测腹板、底板各1处，每处10点。（每10点为一个测区） | E93: 下部：18墩台，检测5个，5*20=100点； 盖梁14个，检测2个，2*20=40点。 上部：11孔，检测5孔，检测5*20=100点。 共240个点，即24个测区。 | F93: 测区 | G93: 24 | I93: 0 | J93: P17页表1第5项 | N93: 50 | O93: 100
A94: 6 | B94: 砼护栏强度 | C94: 回弹法 | D94: 东交函〔2020〕121号。抽查不少于2处/公里，每处不少于2个测区，测区总数不少于10个 | E94: 桥长333.2m，检测10个测区（处） | F94: 测区 | G94: 10 | I94: 0 | J94: P18页表2第3项 | N94: 25 | O94: 50
A95: 7 | B95: 砼护栏碳化深度 | C95: 凿孔法 | F95: 处 | G95: 10 | I95: 0 | J95: P17页表1第3项 | N95: 15 | O95: 30
A96: 8 | B96: 砼护栏断面尺寸 | C96: 尺量 | D96: 东交函〔2020〕121号。抽查不少于2处/公里，每处测厚度、高度各一点，每合同段不少于4处 | E96: 桥长333.2m，检测2处 | F96: 处 | G96: 2 | I96: 0 | J96: P18页表2第3项 | N96: 5 | O96: 10
A97: 9 | B97: 横坡 | C97: 水准仪 | D97: 东交函〔2020〕121号。中桥1处；300m以下大桥每100m单幅1处，300m以上大桥每增加300m以内单幅增加1处，以此类推。（2断面/处） | E97: 罗田3#桥全长333.2m，双向6车道，检测8处,2*8=16断面 | F97: 断面 | G97: 16 | I97: 0 | J97: P4页表1第10项 | N97: 5 | O97: 10
A98: 10 | B98: 沥青桥面渗水系数 | C98: 渗水仪 | D98: 东交函〔2020〕121号。100~1000米大桥1点，大于1000米桥梁每增加1000米以内单幅增加1点，以此类推。 | E98: 罗田3#桥全长333.2m，双向6车道，检测1点 | F98: 点 | G98: 1 | I98: 0 | J98: P15页表2第5项 | N98: 40 | O98: 80
A99: 11 | B99: 沥青桥面铺装厚度及压实度 | C99: 钻芯法 | D99: 东交函〔2020〕121号。钻芯法：500m以下桥梁单幅1处，500m以上大桥每增加500m以内单幅增加1处，以此类推。（1点/处） | E99: 罗田3#桥全长333.2m，双向6车道，检测2点 | F99: 点 | G99: 2 | I99: 0 | J99: P4页表1第2项、第3项 | N99: 250 | O99: 500
A100: 12 | B100: 桥面铺装平整度 * | C100: 平整度仪 | D100: 东交函〔2020〕121号。平整度仪：逐车道连续检测。3m直尺：中桥单幅抽查2处，匝道大桥单幅3-5处。 | E100: 罗田3#桥全长333.2m，双向6车道，检测0.3*6=1.8km | F100: km/车道 | G100: 1.8 | I100: 0 | J100: P15页表2第1项 | N100: 50 | O100: 100
A101: 13 | B101: 桥面抗滑构造深度* | C101: 铺砂法 | D101: 东交函〔2020〕121号。构造深度：单幅中桥1处；300m以下大桥单幅不少于2处，300m以上大桥每增加300m以内单幅增加1处，以此类推。（3点/处） | E101: 罗田3#桥全长333.2m，双向6车道，检测6处,6*3=18点 | F101: 点 | G101: 18 | I101: 0 | J101: P4页表1第5项 | N101: 15 | O101: 30
A102: 14 | B102: 桥面抗滑横向力系数* | C102: 横向力系数检测车 | D102: 东交函〔2020〕121号。横向力系数：逐车道连续检测。 | E102: 罗田3#桥全长333.2m，双向6车道，检测0.3*6=1.8km | F102: km/车道 | G102: 1.8 | I102: 0 | J102: P4页表1第5项 | N102: 400 | O102: 800
A103: 15 | B103: 外观检查 * | C103: 人工 | D103: 东交函〔2020〕121号。全面检查 | E103: 罗田3#桥全长333.2m，双向6车道，为简支梁桥，检测333.2m | F103: 米 | G103: 333.2 | I103: 0 | J103: P5页表2 | N103: 30 | O103: 60
A104: 四 | B104: 隧道工程
A105: 一） | B105: 1#隧道
A106: 1 | B106: 二衬衬砌强度检测 | C106: 回弹法 | D106: 东交函〔2020〕121号。短隧道10个测区，中隧道20个测区，长隧道30个测区，特长隧道40个测区。 | E106: 1#隧道左、右线长334m，为短隧道，左右洞各检测10个测区，共检测20测区 | F106: 测区 | G106: 20 | I106: 0 | J106: P17页表2第4项 | N106: 25 | O106: 50
A107: 2 | B107: 二衬衬砌碳化深度检测 | C107: 凿孔法 | F107: 处 | G107: 20 | I107: 0 | J107: P17页表1第3项 | N107: 15 | O107: 30
A108: 3 | B108: 二衬衬砌厚度 | C108: 地质雷达 | D108: 东交函〔2020〕121号。用雷达法连续测拱顶、拱腰不少于三条线或钻孔法检查。 | E108: 1#隧道左、右线长334m，共668m，布设5条线共668*3=2004米 | F108: 米 | G108: 2004 | I108: 0 | J108: P6页表1第2项 | N108: 7.5 | O108: 15
A109: 4 | B109: 二衬衬砌大面平整度 | C109: 3m直尺 | D109: 东交函〔2020〕121号。短隧道5处，中隧道10处，长隧道20处，特长隧道30处。每处连续3尺。 | E109: 1#隧道左、右线长334m，为短隧道，左右洞各检测5处，共检测10处 | F109: 处 | G109: 10 | I109: 0 | J109: P17页表2第2项 | N109: 15 | O109: 30
A110: 5 | B110: 隧道断面尺寸（测宽度、净空） | C110: 隧道断面仪法 | D110: 东交函〔2020〕121号。每座中、短隧道测5-10点；长隧道测10-20点；特长隧道测不少于20点。 | E110: 1#隧道左、右线长334m，为短隧道，左右洞各检测10点，共检测20点 | F110: 点 | G110: 20 | I110: 0 | J110: P17页表2目第1项 | N110: 240 | O110: 480
A111: 6 | B111: 隧道基层厚度和完整性 | C111: 钻芯法 | D111: 东交函〔2020〕121号。参照道路工程，1点/公里/双车道 | E111: 1#隧道左、右线长334m，20cm厚C20砼基层取芯：单洞检测1点，共检测2点 | F111: 点 | G111: 2 | I111: 0 | J111: P3页表2基层、底基层第4项 | N111: 100 | O111: 200
A112: 7 | B112: 隧道砼路面厚度及劈裂强度 | C112: 钻芯法 | D112: 东交函〔2020〕121号。参照道路工程，1点/公里/双车道 | E112: 1#隧道左、右线长334m，26cm厚C40砼板取芯：单洞检测1点，共检测2点 | F112: 点 | G112: 2 | I112: 0 | J112: P4页表1第2项及第6项 | N112: 275 | O112: 550
A113: 8 | B113: 隧道沥青路面 | C113: 钻芯法 | D113: 东交函〔2020〕121号。500m以下单幅1处，500m以上每增加500m以内增加1处。其他抽检项目频率同路面工程。 | E113: 1#隧道左、右线长334m，单洞检测1点，共检测2点 | F113: 点 | G113: 2 | I113: 0 | J113: P4页表1第2项及第3项 | N113: 250 | O113: 500
A114: 9 | B114: 路面平整度* | C114: 平整度仪 | D114: 东交函〔2020〕121号。平整度仪：逐车道连续检测。 | E114: 1#隧道左、右线长334m，检测0.67*6=4km | F114: km/车道 | G114: 4 | I114: 0 | J114: P4页表1第1项 | N114: 50 | O114: 100
A115: 10 | B115: 路面抗滑构造深度* | C115: 铺砂法 | D115: 东交函〔2020〕121号。2处/公里（3点/处），每合同段≮4处。 | E115: 1#隧道左、右线长334m，检测2处，6点 | F115: 点 | G115: 6 | I115: 0 | J115: P4页表1第5项 | N115: 15 | O115: 30
A116: 11 | B116: 沥青路面抗滑摩擦系数* | C116: 摆式摩擦仪 | D116: 东交函〔2020〕121号。2处/公里（3点/处），每合同段≮4处 | E116: 同上 | F116: 点 | G116: 6 | I116: 0 | N116: 22.5 | O116: 45
A117: 12 | B117: 沥青路面横向力系数* | C117: 横向力系数检测车 | D117: 东交函〔2020〕121号。逐车道连续检测 | E117: 1#隧道左、右线长334m，检测0.67*6=4km | F117: km/车道 | G117: 4 | I117: 0 | N117: 400 | O117: 800
A118: 13 | B118: 沥青路面车辙* | C118: 横断面尺法 | D118: 东交函〔2020〕121号。≮1断面/车道/公里，每合同段≮4断面。 | E118: 1#隧道左、右线长334m，检测6断面 | F118: 断面 | G118: 6 | I118: 0 | J118: P15页表2第4项 | N118: =O118*50% -> 15 | O118: 30
A119: 14 | B119: 沥青路面渗水系数 | C119: 渗水仪 | D119: 东交函〔2020〕121号。1处/公里/半幅；互通：1点。每处≮1点，每合同段≮4点。 | E119: 1#隧道左、右线长334m，检测2处，2点 | F119: 点 | G119: 2 | I119: 0 | J119: P15页表2第5项 | N119: 40 | O119: 80
A120: 15 | B120: 隧道外观检测* | C120: 人工 | D120: 东交函〔2020〕121号。全面检查 | E120: 1#隧道共约21996㎡，检测21996㎡ | F120: ㎡ | G120: 21996 | I120: 0 | J120: P6页表1第1项 | N120: 1 | O120: 2
A121: 二） | B121: 2#隧道
A122: 1 | B122: 二衬衬砌混凝土强度 | C122: 回弹法 | D122: 东交函〔2020〕121号。短隧道10个测区，中隧道20个测区，长隧道30个测区，特长隧道40个测区。 | E122: 2#隧道左线长265m，右线长245m，为短隧道，左右洞各检测10个测区，共检测20测区。 | F122: 测区 | G122: 20 | I122: 0 | J122: P17页表2第4项 | N122: 25 | O122: 50
A123: 2 | B123: 二衬衬砌混凝土碳化深度检测 | C123: 凿孔法 | F123: 处 | G123: 20 | I123: 0 | J123: P17页表1第3项 | N123: 15 | O123: 30
A124: 3 | B124: 二衬衬砌厚度 | C124: 地质雷达 | D124: 东交函〔2020〕121号。用雷达法连续测拱顶、拱腰不少于三条线或钻孔法检查。 | E124: 2#隧道左线长265m，右线长245m，共510m，布设5条线共510*3=1530米 | F124: 米 | G124: 1530 | I124: 0 | J124: P6页表1第2项 | N124: 7.5 | O124: 15
A125: 4 | B125: 二衬衬砌大面平整度 | C125: 3m直尺 | D125: 东交函〔2020〕121号。短隧道5处，中隧道10处，长隧道20处，特长隧道30处。每处连续3尺。 | E125: 2#隧道左线长265m，右线长245m，为短隧道，左右洞各检测5处，共检测10处 | F125: 处 | G125: 10 | I125: 0 | J125: P17页表2第2项 | N125: 15 | O125: 30
A126: 5 | B126: 隧道断面尺寸（测宽度、净空） | C126: 隧道断面仪法 | D126: 东交函〔2020〕121号。每座中、短隧道测5-10点；长隧道测10-20点；特长隧道测不少于20点。 | E126: 2#隧道左线长265m，右线长245m，为短隧道，左右洞各检测10点，共检测20点 | F126: 点 | G126: 20 | I126: 0 | J126: P17页表2目第1项 | N126: 240 | O126: 480
A127: 6 | B127: 隧道基层厚度和完整性 | C127: 钻芯法 | D127: 东交函〔2020〕121号。参照道路工程，1点/公里/双车道 | E127: 2#隧道左线长265m，右线长245m，20cm厚C20砼基层取芯：单洞检测1点，共检测2点 | F127: 点 | G127: 2 | I127: 0 | J127: P3页表2基层、底基层第4项 | N127: 100 | O127: 200
A128: 7 | B128: 隧道砼路面厚度及劈裂强度 | C128: 钻芯法 | D128: 东交函〔2020〕121号。参照道路工程，1点/公里/双车道 | E128: 2#隧道左线长265m，右线长245m，26cm厚C40砼板取芯：单洞检测1点，共检测2点 | F128: 点 | G128: 2 | I128: 0 | J128: P4页表1第2项及第6项 | N128: 275 | O128: 550
A129: 8 | B129: 隧道沥青路面 | C129: 钻芯法 | D129: 东交函〔2020〕121号。500m以下单幅1处，500m以上每增加500m以内增加1处。其他抽检项目频率同路面工程。 | E129: 2#隧道左线长265m，右线长245m,单洞检测1点，共检测2点 | F129: 点 | G129: 2 | I129: 0 | J129: P4页表1第2项及第3项 | N129: 250 | O129: 500
A130: 9 | B130: 路面平整度* | C130: 平整度仪 | D130: 东交函〔2020〕121号。平整度仪：逐车道连续检测。 | E130: 2#隧道左线长265m，右线长245m,检测0.5*6=3km | F130: km/车道 | G130: 3 | I130: 0 | J130: P4页表1第1项 | N130: 50 | O130: 100
A131: 10 | B131: 路面抗滑构造深度* | C131: 铺砂法 | D131: 东交函〔2020〕121号。2处/公里（3点/处），每合同段≮4处。 | E131: 2#隧道左线长265m，右线长245m,检测2处，6点 | F131: 点 | G131: 6 | I131: 0 | J131: P4页表1第5项 | N131: 15 | O131: 30
A132: 11 | B132: 沥青路面抗滑摩擦系数* | C132: 摆式摩擦仪 | D132: 东交函〔2020〕121号。2处/公里（3点/处），每合同段≮4处 | E132: 同上 | F132: 点 | G132: 6 | I132: 0 | N132: 22.5 | O132: 45
A133: 12 | B133: 沥青路面横向力系数* | C133: 横向力系数检测车 | D133: 东交函〔2020〕121号。逐车道连续检测 | E133: 2#隧道左线长265m，右线长245m,检测0.5*6=3km | F133: km/车道 | G133: 3 | I133: =ROUND(G133*H133,0) -> 0 | N133: 400 | O133: 800
A134: 13 | B134: 沥青路面车辙* | C134: 横断面尺法 | D134: 东交函〔2020〕121号。≮1断面/车道/公里，每合同段≮4断面。 | E134: 2#隧道左线长265m，右线长245m,检测6断面 | F134: 断面 | G134: 6 | I134: 0 | J134: P15页表2第4项 | N134: 15 | O134: 30
A135: 14 | B135: 沥青路面渗水系数 | C135: 渗水仪 | D135: 东交函〔2020〕121号。1处/公里/半幅；互通：1点。每处≮1点，每合同段≮4点。 | E135: 2#隧道左线长265m，右线长245m,检测2处，2点 | F135: 点 | G135: 2 | I135: 0 | J135: P15页表2第5项 | N135: 40 | O135: 80
A136: 15 | B136: 隧道外观检测* | C136: 人工 | D136: 东交函〔2020〕121号。全面检查 | E136: 2#隧道共约16657㎡，检测16657㎡ | F136: ㎡ | G136: 16657 | I136: 0 | J136: P6页表1第1项 | N136: 1 | O136: 2
A137: 四 | B137: 管道工程
A138: 1 | B138: 应急池砼强度 | C138: 回弹法 | D138: 参照涵洞检测要求，每座检测10测区 | E138: 共3座应急池，检测30测区 | F138: 测区 | G138: 30 | I138: 0 | J138: P16页表4第1项 | N138: 30 | O138: 60
A139: 2 | B139: 应急池砼碳化深度 | C139: 凿孔法 | F139: 处 | G139: 30 | I139: 0 | J139: P17页表1第3项 | N139: 15 | O139: 30
A140: 3 | B140: 应急池结构尺寸 | C140: 尺量 | D140: 参照涵洞检测要求，每座检测10点 | E140: 共3座应急池，检测30点 | F140: 点 | G140: 30 | I140: 0 | J140: P16页表3第1项 | N140: 5 | O140: 10
A141: 4 | B141: 应急池钢筋间距和保护层厚度检测 | C141: 电磁感应法 | D141: 参照涵洞检测要求，每座检测10测区 | E141: 共3座应急池，检测30测区 | F141: 测区 | G141: 30 | I141: 0 | J141: P17页表1第5项 | N141: 50 | O141: 100
A142: 五 | B142: 机电工程（含隧道机电）
A143: （一） | B143: 监控系统
A144: 1 | B144: 闭路电视监视系统（传输通道指示） | C144: 视频测试仪 | D144: 东交函〔2020〕121号。抽检设备总数不少于10%且不少于3套，少于3套全检。隧道：洞外摄像机：抽检总数不少于10%且不少于3套，少于3套全检。洞内摄像机：抽检隧道数量（按座）不少于50%，且不少于2座，少于2座全检。每座隧道抽检5套，少于5套全检。 | E144: 1.路桥段共14套，检测3路； 2.隧道摄像机共20套，检测10路。 | F144: 路 | G144: 13 | I144: 0 | J144: P19页表1第3项 | N144: 1500 | O144: 3000
A145: 2 | B145: 计算机监控软件及网络(网络健康测试) | C145: 网络测试仪 | D145: 东交函〔2020〕121号。抽检设备总数不少于10%且不少于3套，少于3套全检。隧道监控中心设备及软件：1.对隧道通风设施的控制功能：每座隧道抽检风机3组，少于3组全检。2.对隧道照明设施的控制功能：每座隧道抽检照明设施3个回路，少于3个全检。3.火灾报警计算机功能：抽检装有手动报警按钮的隧道数量(按座）不少于50%，且不少于2座，少于2座全检。每座隧道抽检5套手动报警按钮，少于5套全检。4.图像监视功能：清点所有图像上传数量，图像质量人工主观评分不少于4分为合格点。 | E145: 1.路桥部分交换机共4套，检测3处； 2.1#、2#隧道照明控制箱各2个，各检测2个，共检测4个； 3.1#、2#隧道火灾报警计算机功能各2套，各检测2个，共检测4个； 4.1#、2#隧道图像监视功能各2项，各检测2个，共检测4个。 | F145: 处 | G145: 15 | I145: 0 | J145: P19页表1第9项 | N145: 2250 | O145: 4500
A146: （二） | B146: 照明设施
A147: 1 | B147: 照明设施—照明灯具 | C147: 亮度计及接地电阻测量仪 | D147: 东交函〔2020〕121号。各路段、收费站、停车区、服务区广场及互通立交的照明灯具：每合同段抽检每类型设备总数不少于10%且不少于3套，少于3套全检。隧道部分：抽检装有照明设施的隧道数量（按座）不少于50%，且不少于2座 ，少于2座全检。每座隧道抽检3个控制箱，少于3个全检。引道照明灯抽检总数不少于10%且不少于3套，少于3套全检。 | E147: 1.路桥部分共137套，检测137*10%=14个； 2.隧道部分共388套，检测388*10%=39个。 3.隧道部分控制箱、箱变6个全检。 | F147: 个 | G147: =14+39+6 -> 59 | I147: 0 | J147: P20页表2第1项 | N147: 725 | O147: 1450
A148: 2 | B148: 照明设施—照度检测 | C148: 照度计 | D148: 东交函〔2020〕121号。各路段、收费站、停车区、服务区广场：每合同段抽检每类型照明场所总数不少于10%且不少于2处，少于2处全检。隧道部分：抽检装有照明设施的隧道数量（按座）不少于50%，且不少于2座 ，少于2座全检。每座隧道抽检1个洞及1处引道。 | E148: 1.路桥部分共137套，检测137*10%=14点； 2.隧道部分共388套，1#隧道224套，2#隧道164套，检测112+82=194点。 | F148: 点 | G148: =14+194 -> 208 | I148: 0 | J148: P20页表2第2项 | N148: 35 | O148: 70
A149: （三） | B149: 报警与诱导设施
A150: 1 | B150: 报警与诱导设施 | C150: 实际操作 | D150: 抽检装有手动报警按钮的隧道数量（按座）不少于50%，且不少于2座 ，少于2座全检。 每座隧道抽检5套手动报警按钮，少于5套全检。 | E150: 1#隧道火灾报警系统共62套，检测5套 | F150: 套 | G150: 5 | I150: 0 | N150: =O150*50% -> 250 | O150: 500
A151: （四） | B151: 消防设施
A152: 1 | B152: 消防设施 | C152: 实际操作 | D152: 每合同段：每座隧道抽检5个消防箱，少于5个全检。每个消防箱须检测消防水压及消火栓功能。 | E152: 隧道共2座，消防箱共79个，每座隧道抽检5个消防箱，共检测10个 | F152: 个 | G152: 10 | I152: 0 | N152: 240 | O152: 480
A153: 六 | B153: 交通安全设施工程
A154: 1 | B154: 标志立柱竖直度 | C154: 尺量 | D154: 东交函〔2020〕121号。标志抽查不少于总数的10%.每柱测两个方向，每块板测不少于2点，少于5个则全部检测 | E154: 共96套，检测96*10%=10根（块） | F154: 根 | G154: 10 | I154: 0 | J154: P18页表2第1项 | N154: 7.5 | O154: 15
A155: 2 | B155: 标志板净空高度 | C155: 尺量 | F155: 块 | G155: 10 | I155: 0 | N155: 7.5 | O155: 15
A156: 3 | B156: 标志底板厚度 | C156: 尺量 | F156: 块 | G156: 10 | I156: 0 | N156: 7.5 | O156: 15
A157: 4 | B157: 标志反光膜等级及逆反射系数 | C157: 逆反射系数测量仪 | F157: 处 | G157: 10 | I157: 0 | N157: 100 | O157: 200
A158: 5 | B158: 标线厚度* | C158: 厚度计等 | D158: 东交函〔2020〕121号。标线抽查不少于2处/公里；每处测5条标线，每条标线测1点；每条标线厚度横向两侧各测1个点取平均值。每合同段不少于4处。 | E158: 本工程共2.6km，一级公路，双向6车道，检测3*2=6处 | F158: 处 | G158: 6 | I158: 0 | J158: P18页表2第2项 | N158: 10 | O158: 20
A159: 6 | B159: 标线反光标线逆反射系数* | C159: 逆反射系数测量仪 | F159: 处 | G159: 6 | I159: 0 | N159: 100 | O159: 200
A160: 7 | B160: 波形防撞栏基底金属厚度 | C160: 尺量 | D160: 东交函〔2020〕121号。抽查不少于2处/公里；每合同段不少于4处。 | E160: 共2768m，检测3*2=6处 | F160: 处 | G160: 6 | I160: 0 | J160: P18页表2第3项 | N160: 5 | O160: 10
A161: 8 | B161: 波形防撞栏立柱壁厚 | C161: 尺量 | F161: 处 | G161: 6 | I161: 0 | N161: 10 | O161: 20
A162: 9 | B162: 波形防撞栏立柱埋入深度 | C162: 弹性波法 | F162: 根 | G162: 6 | I162: 0 | N162: 30 | O162: 60
A163: 10 | B163: 波形防撞栏横梁中心高度 | C163: 尺量 | F163: 处 | G163: 6 | I163: 0 | N163: 5 | O163: 10
A164: 11 | B164: 砼护栏砼强度检测 | C164: 回弹法 | D164: 东交函〔2020〕121号。10测区/公里 | E164: 含中央护栏部分共288m，检测10测区 | F164: 测区 | G164: 10 | I164: 0 | J164: P18页表8交通安全设施第3项 | N164: 25 | O164: 50
A165: 12 | B165: 砼护栏砼碳化深度检测 | C165: 凿孔法 | F165: 处 | G165: 10 | I165: 0 | J165: P17页表5桥梁（2）第3项 | N165: 15 | O165: 30
A166: 13 | B166: 砼护栏断面尺寸 | C166: 尺量 | D166: 东交函〔2020〕121号。2处/公里，5点/处 | E166: 含中央护栏部分共288m，检测2处10点 | F166: 点 | G166: 10 | I166: 0 | J166: P18页表8交通安全设施第3项 | N166: 5 | O166: 10
A167: 七 | B167: 竣工复测
A168: 一） | B168: 路面工程
A169: 1 | B169: 沥青路面弯沉* | C169: 贝克曼梁 | D169: 东交函〔2020〕121号。≮40点/评定单元（按路基段路线长度1公里计），各车道交替检测 | E169: 一级公路，共约793m，双向6车道，检测40*2=80点 | F169: 点 | G169: 80 | I169: 0 | J169: 2012年9月21日会议纪要第二点 | N169: 15 | O169: 30
A170: 2 | B170: 路面平整度* | C170: 平整度仪 | D170: 东交函〔2020〕121号。平整度仪：逐车道连续检测。 | E170: 一级公路，共约793m，双向6车道，检测0.8*6=4.8km | F170: km/车道 | G170: 4.8 | I170: 0 | J170: P4页表1第1项 | N170: 50 | O170: 100
A171: 3 | B171: 路面抗滑构造深度* | C171: 铺砂法 | D171: 东交函〔2020〕121号。2处/公里（3点/处），每合同段≮4处。 | E171: 一级公路，共约793m，双向6车道，检测2处，6点 | F171: 点 | G171: 6 | I171: 0 | J171: P4页表1第5项 | N171: 15 | O171: 30
A172: 4 | B172: 沥青路面抗滑摩擦系数* | C172: 摆式摩擦仪 | D172: 东交函〔2020〕121号。2处/公里（3点/处），每合同段≮4处 | E172: 同上 | F172: 点 | G172: 6 | I172: 0 | N172: 22.5 | O172: 45
A173: 5 | B173: 沥青路面横向力系数* | C173: 横向力系数检测车 | D173: 东交函〔2020〕121号。逐车道连续检测 | E173: 一级公路，共约793m，双向6车道，检测0.8*6=4.8km | F173: km/车道 | G173: 4.8 | I173: 0 | N173: 400 | O173: 800
A174: 6 | B174: 沥青路面车辙* | C174: 横断面尺法 | D174: 东交函〔2020〕121号。≮1断面/车道/公里，每合同段≮4断面。 | E174: 一级公路，共约793m，双向6车道，检测6断面 | F174: 断面 | G174: 6 | I174: 0 | J174: P15页表2第4项 | N174: 15 | O174: 30
A175: 7 | B175: 沥青路面外观检查* | C175: 人工 | D175: 东交函〔2020〕121号。全面检查 | E175: 一级公路，共约793m，双向6车道，检测0.8*6=4.8km | F175: km/车道 | G175: 4.8 | I175: 0 | J175: P15页表2第7项 | N175: 140 | O175: 280
A176: 二） | B176: 桥梁工程
A177: （一） | B177: 金佛大桥
A178: 1 | B178: 桥面铺装平整度 * | C178: 平整度仪 | D178: 东交函〔2020〕121号。平整度仪：逐车道连续检测。3m直尺：中桥单幅抽查2处，匝道大桥单幅3-5处。 | E178: 金佛大桥全长496m，双向6车道，检测0.5*6=3km | F178: km/车道 | G178: 3 | I178: 0 | J178: P4页表1第1项 | N178: 50 | O178: 100
A179: 2 | B179: 桥面抗滑构造深度* | C179: 铺砂法 | D179: 东交函〔2020〕121号。构造深度：单幅中桥1处；300m以下大桥单幅不少于2处，300m以上大桥每增加300m以内单幅增加1处，以此类推。（3点/处） | E179: 金佛大桥全长496m，双向6车道，检测6处,6*3=18点 | F179: 点 | G179: 18 | I179: 0 | J179: P4页表1第5项 | N179: 15 | O179: 30
A180: 3 | B180: 桥面抗滑横向力系数* | C180: 横向力系数检测车 | D180: 东交函〔2020〕121号。横向力系数：逐车道连续检测。 | E180: 金佛大桥全长496m，双向6车道，检测0.5*6=3km | F180: km/车道 | G180: 3 | I180: 0 | J180: P4页表1第5项 | N180: 400 | O180: 800
A181: 4 | B181: 外观检查 * | C181: 人工 | D181: 东交函〔2020〕121号。全面检查 | E181: 金佛大桥全长496m，双向6车道，为简支梁桥，检测496m | F181: 米 | G181: 496 | I181: 0 | J181: P5页表2 | N181: 25 | O181: 50
A182: （二） | B182: 罗田1#桥
A183: 1 | B183: 桥面铺装平整度 * | C183: 平整度仪 | D183: 东交函〔2020〕121号。平整度仪：逐车道连续检测。3m直尺：中桥单幅抽查2处，匝道大桥单幅3-5处。 | E183: 罗田1#桥全长216.4m，双向6车道，检测0.2*6=1.2km | F183: km/车道 | G183: 1.2 | I183: 0 | J183: P4页表1第1项 | N183: =O183*50% -> 50 | O183: 100
A184: 2 | B184: 桥面抗滑构造深度* | C184: 铺砂法 | D184: 东交函〔2020〕121号。构造深度：单幅中桥1处；300m以下大桥单幅不少于2处，300m以上大桥每增加300m以内单幅增加1处，以此类推。（3点/处） | E184: 罗田1#桥全长216.4m，双向6车道，检测4处,4*3=12点 | F184: 点 | G184: 12 | I184: 0 | J184: P4页表1第5项 | N184: 15 | O184: 30
A185: 3 | B185: 桥面抗滑横向力系数* | C185: 横向力系数检测车 | D185: 东交函〔2020〕121号。横向力系数：逐车道连续检测。 | E185: 罗田1#桥全长216.4m，双向6车道，检测0.2*6=1.2km | F185: km/车道 | G185: 1.2 | I185: 0 | J185: P4页表1第5项 | N185: 400 | O185: 800
A186: 4 | B186: 外观检查 * | C186: 人工 | D186: 东交函〔2020〕121号。全面检查 | E186: 罗田1#桥全长216.4m，双向6车道，为简支梁桥，检测216.4m | F186: 米 | G186: 216.4 | I186: 0 | J186: P5页表2 | N186: 25 | O186: 50
A187: （三） | B187: 罗田2#桥
A188: 1 | B188: 桥面铺装平整度 * | C188: 平整度仪 | D188: 东交函〔2020〕121号。平整度仪：逐车道连续检测。3m直尺：中桥单幅抽查2处，匝道大桥单幅3-5处。 | E188: 罗田2#桥全长276.4m，双向6车道，检测0.3*6=1.8km | F188: km/车道 | G188: 1.8 | I188: 0 | J188: P4页表1第1项 | N188: 50 | O188: 100
A189: 2 | B189: 桥面抗滑构造深度* | C189: 铺砂法 | D189: 东交函〔2020〕121号。构造深度：单幅中桥1处；300m以下大桥单幅不少于2处，300m以上大桥每增加300m以内单幅增加1处，以此类推。（3点/处） | E189: 罗田2#桥全长276.4m，双向6车道，检测4处,4*3=12点 | F189: 点 | G189: 12 | I189: 0 | J189: P4页表1第5项 | N189: 15 | O189: 30
A190: 3 | B190: 桥面抗滑横向力系数* | C190: 横向力系数检测车 | D190: 东交函〔2020〕121号。横向力系数：逐车道连续检测。 | E190: 罗田2#桥全长276.4m，双向6车道，检测0.3*6=1.8km | F190: km/车道 | G190: 1.8 | I190: 0 | J190: P4页表1第5项 | N190: 400 | O190: 800
A191: 4 | B191: 外观检查 * | C191: 人工 | D191: 东交函〔2020〕121号。全面检查 | E191: 罗田2#桥全长276.4m，双向6车道，为简支梁桥，检测276.4m | F191: 米 | G191: 276.4 | I191: 0 | J191: P5页表2 | N191: 25 | O191: 50
A192: （四） | B192: 罗田3#桥
A193: 1 | B193: 桥面铺装平整度 * | C193: 平整度仪 | D193: 东交函〔2020〕121号。平整度仪：逐车道连续检测。3m直尺：中桥单幅抽查2处，匝道大桥单幅3-5处。 | E193: 罗田3#桥全长333.2m，双向6车道，检测0.3*6=1.8km | F193: km/车道 | G193: 1.8 | I193: 0 | J193: P4页表1第1项 | N193: 50 | O193: 100
A194: 2 | B194: 桥面抗滑构造深度* | C194: 铺砂法 | D194: 东交函〔2020〕121号。构造深度：单幅中桥1处；300m以下大桥单幅不少于2处，300m以上大桥每增加300m以内单幅增加1处，以此类推。（3点/处） | E194: 罗田3#桥全长333.2m，双向6车道，检测6处,6*3=18点 | F194: 点 | G194: 18 | I194: 0 | J194: P4页表1第5项 | N194: 15 | O194: 30
A195: 3 | B195: 桥面抗滑横向力系数* | C195: 横向力系数检测车 | D195: 东交函〔2020〕121号。横向力系数：逐车道连续检测。 | E195: 罗田3#桥全长333.2m，双向6车道，检测0.3*6=1.8km | F195: km/车道 | G195: 1.8 | I195: 0 | J195: P4页表1第5项 | N195: 400 | O195: 800
A196: 4 | B196: 外观检查 * | C196: 人工 | D196: 东交函〔2020〕121号。全面检查 | E196: 罗田3#桥全长333.2m，双向6车道，为简支梁桥，检测333.2m | F196: 米 | G196: 333.2 | I196: 0 | J196: P5页表2 | N196: 25 | O196: 50
A197: 三） | B197: 隧道工程
A198: （一） | B198: 1#隧道
A199: 1 | B199: 路面平整度* | C199: 平整度仪 | D199: 东交函〔2020〕121号。平整度仪：逐车道连续检测。 | E199: 1#隧道左、右线长334m，检测0.67*6=4km | F199: km/车道 | G199: 4 | I199: =ROUND(G199*H199,0) -> 0 | J199: P4页表1第1项 | N199: 50 | O199: 100
A200: 2 | B200: 路面抗滑构造深度* | C200: 铺砂法 | D200: 东交函〔2020〕121号。2处/公里（3点/处），每合同段≮4处。 | E200: 1#隧道左、右线长334m，检测2处，6点 | F200: 点 | G200: 6 | I200: 0 | J200: P4页表1第5项 | N200: 15 | O200: 30
... 17 more rows

Sheet 业主专项验收
A1: 松山湖科学城至光明科学城通道（东莞段）二期工程-专项验收检测
A2: 序号 | B2: 检测项目 | C2: 检测方法 | D2: 检测频率 | E2: 图纸工程数量 | F2: 单位 | G2: 检测数量 | H2: 单价 | I2: 金额（元） | J2: 备注 | K2: 问题列 | L2: 回复意见 | N2: 单价报价上限（元）
A3: 一 | B3: 路基工程
A4: 1 | B4: 路基边坡防护抗滑桩完整性检测（3管） | C4: 声波透射法 | D4: 东交函〔2020〕121号。抽检不宜少于总桩数的20%，且不得少于10根 | E4: 路基边坡防护抗滑桩：D150桩共10根，平均桩长26m，检测10根 | F4: 根 | G4: 10 | I4: =ROUND(G4*H4,0) -> 0 | J4: P4页表2第1项 | N4: =O4*50% -> 500 | O4: 1000
A5: 2 | B5: 路基边坡防护抗滑桩完整性检测（4管） | C5: 声波透射法 | D5: 东交函〔2020〕121号。抽检不宜少于总桩数的20%，且不得少于10根 | E5: 路基边坡防护抗滑桩：D200桩共56根，平均桩长34m，检测11根。 | F5: 根 | G5: 11 | I5: =ROUND(G5*H5,0) -> 0 | J5: P4页表2第1项 | N5: =O5*50% -> 750 | O5: 1500
A6: 3 | B6: 路基边坡防护抗滑桩完整性检测（4管）超出30米长度 | E6: 超出30长部分：4*11=44m | F6: 米 | G6: 44 | I6: 0 | J6: P4页表2第1项 | N6: 10 | O6: 20
A7: 4 | B7: 路基边坡防护抗滑桩抽芯（钻径101/110mm） | C7: 钻芯法 | D7: 东交函〔2020〕121号。采用钻芯法检测的比例不宜少于总桩数的10%，且不得少于6根。 | E7: D150桩共10根，平均桩长26m，检测3根；D200桩共56根，平均桩长34m，检测3根：（26*2+5+1）*3+（34*3+2*3+1+1）*3=504m | F7: 米 | G7: 504 | I7: 0 | J7: P4页表2第3项 | N7: 160 | O7: 320
A8: 5 | B8: 2#隧道边坡防护抗滑桩完整性检测（3管） | C8: 声波透射法 | D8: 东交函〔2020〕121号。按设计要求，全部检测 | E8: 2#隧道边坡防护抗滑桩：D180桩共38根，平均桩长25m，检测38根 | F8: 根 | G8: 38 | I8: 0 | J8: P4页表2第1项 | N8: 750 | O8: 1500
A9: 6 | B9: 2#隧道边坡防护抗滑桩抽芯（钻径101/110mm） | C9: 钻芯法 | D9: 东交函〔2020〕121号。采用钻芯法检测的比例不宜少于总桩数的10%。 | E9: D180桩共38根，平均桩长25m，检测6根：（25*3+1.8*3+1+1）*4=329.6m | F9: 米 | G9: 329.6 | I9: 0 | J9: P4页表2第3项 | N9: 160 | O9: 320
A10: 7 | B10: CFG桩单桩承载力静载检测(≤50t） | C10: 堆载法 | D10: 东交函〔2020〕121号。抽检总桩数0.1%，且不少于3点。 | E10: CL1K2+947.55箱涵CFG桩221根，检测3点。 | F10: 点 | G10: 3 | I10: 0 | J10: P16表2第2项静载试验，2015年5月12日会议纪要 | N10: 4400 | O10: =10000-20*60 -> 8800
A11: 8 | B11: 堆载费用 | E11: 检测3点。 | F11: 点 | G11: 3 | I11: 0 | N11: 1452 | O11: =3704-20*40 -> 2904
A12: 二 | B12: 桥梁工程
A13: 一） | B13: 金佛大桥
A14: （一） | B14: 基桩工程
A15: 1 | B15: 钻孔抽芯法钻径（101/110mm） | C15: 钻芯法 | D15: 东交函〔2020〕121号，总桩数的2%，每座桥≥2根 | E15: D120桩8根，平均桩长25m，D160桩29根，平均桩长33m，D180桩44根，平均桩长27m，D200桩8根，平均桩长21m。共89根桩，检测2根。 （27*3+1+1+5.4）*1+（21*3+1+1+6）*1=215.4m | F15: 米 | G15: =(27*3+1+1+5.4)*1+(21*3+1+1+6)*1+(25*2+1+5)*1 -> 215.4 | I15: 0 | J15: P4页表2第3项 | K15: 统计数量遗漏：D160桩29根，平均桩长33m，检测3根； D200桩8根，平均桩长21m，检测1根。 | L15: 已修改 | N15: 160 | O15: 320
A16: （二） | B16: 桥梁静动载试验
A17: 1 | B17: 简支梁桥静载试验（≤25m） | C17: 静载法 | D17: 东交函〔2020〕121号。新建、改建、扩建和加固的中桥、大桥、特大桥及特殊结构桥梁竣（交）工验收前进行试验。（1）表中所列为规范规定的主要加载项目测试费，如需进行附加加载项目测试，可按主要加载项目测试费的50%另计；（2）3孔以下的连续结构按实际孔数计，3孔及以上按3孔计。 | E17: 金佛大桥全长496m，双向6车道，单幅桥宽16.5~24.7m，为简支梁桥，选取1跨30m小箱梁桥进行成桥静动载试验检测。超出25米部分为：30-25=5米 | F17: 孔 | G17: 1 | I17: 0 | J17: P5页表1第2项，2012年9月21日会议纪要第六点 | N17: 21000 | O17: 42000
A18: 2 | B18: 超过25m部分 | F18: 米 | G18: 5 | I18: 0 | N18: 420 | O18: 840
A19: 3 | B19: 简支梁桥动载试验（≤25m） | C19: 动载法 | F19: 孔 | G19: 1 | I19: 0 | N19: 9000 | O19: 18000
A20: 4 | B20: 超过25m部分 | F20: 米 | G20: 5 | I20: 0 | N20: 120 | O20: 240
A21: 5 | B21: 桥梁检测车租赁、试验加载设备、支架、电源与照明材料及现场配合人员等费用 | C21: / | F21: 座 | G21: 1 | I21: 0 | N21: 18750 | O21: 37500
A22: 二） | B22: 罗田1#桥
A23: （一） | B23: 基桩工程
A24: 1 | B24: 钻孔抽芯法钻径（101/110mm） | C24: 钻芯法 | D24: 东交函〔2020〕121号，总桩数的2%，且群桩基础每墩不少于1根，每座桥≥2根 | E24: D160桩14根，平均桩长24m，D180桩16根，平均桩长21m，D200桩2根，平均桩长15m。共32根桩，检测2根。 （21*3+1.8*3+1+1）*1+（15*3+2*3+1+1）*1=123.4m | F24: 米 | G24: =(21*3+1.8*3+1+1)*1+(15*3+2*3+1+1)*1 -> 123.4 | I24: 0 | J24: P4页表2第3项 | L24: 按总桩数进行抽芯，共32根桩，修改抽芯数量为3根。 | N24: 160 | O24: 320
A25: （二） | B25: 桥梁静动载试验
A26: 1 | B26: 简支梁桥静载试验（≤25m） | C26: 静载法 | D26: 东交函〔2020〕121号。新建、改建、扩建和加固的中桥、大桥、特大桥及特殊结构桥梁竣（交）工验收前进行试验。（1）表中所列为规范规定的主要加载项目测试费，如需进行附加加载项目测试，可按主要加载项目测试费的50%另计；（2）3孔以下的连续结构按实际孔数计，3孔及以上按3孔计。 | E26: 罗田1#桥全长216.4m，双向6车道，单幅桥宽16.5m，为简支梁桥，选取1跨30m小箱梁桥进行成桥静动载试验检测。超出25米部分为：30-25=5米 | F26: 孔 | G26: 1 | I26: 0 | J26: P5页表1第2项，2012年9月21日会议纪要第六点 | N26: 21000 | O26: 42000
A27: 2 | B27: 超过25m部分 | F27: 米 | G27: 5 | I27: 0 | N27: 420 | O27: 840
A28: 3 | B28: 简支梁桥动载试验（≤25m） | C28: 动载法 | F28: 孔 | G28: 1 | I28: 0 | N28: 9000 | O28: 18000
A29: 4 | B29: 超过25m部分 | F29: 米 | G29: 5 | I29: 0 | N29: 120 | O29: 240
A30: 5 | B30: 桥梁检测车租赁、试验加载设备、支架、电源与照明材料及现场配合人员等费用 | C30: / | F30: 座 | G30: 1 | I30: 0 | N30: 18750 | O30: 37500
A31: 三） | B31: 罗田2#桥
A32: （一） | B32: 基桩工程
A33: 1 | B33: 钻孔抽芯法钻径（101/110mm） | C33: 钻芯法 | D33: 东交函〔2020〕121号，总桩数的2%，每座桥≥2根 | E33: D160桩22根，平均桩长23m，D180桩6根，平均桩长17.3m，D200桩6根，平均桩长15m。 共34根桩基，检测2根。 （17.3*3+1.8*3+1+1）*1+（15*3+2*3+1+1）*1=112.3m | F33: 米 | G33: =(17.3*3+1.8*3+1+1)*1+(15*3+2*3+1+1)*1 -> 112.3 | I33: 0 | J33: P4页表2第3项 | K33: D200桩数量为6根 | L33: 按总桩数进行抽芯，共34根桩，修改抽芯数量为3根。且2米桩径数量已修改 | N33: 160 | O33: 320
A34: （二） | B34: 桥梁静动载试验
A35: 1 | B35: 简支梁桥静载试验（≤25m） | C35: 静载法 | D35: 东交函〔2020〕121号。新建、改建、扩建和加固的中桥、大桥、特大桥及特殊结构桥梁竣（交）工验收前进行试验。（1）表中所列为规范规定的主要加载项目测试费，如需进行附加加载项目测试，可按主要加载项目测试费的50%另计；（2）3孔以下的连续结构按实际孔数计，3孔及以上按3孔计。 | E35: 罗田2#桥全长276.4m，双向6车道，单幅桥宽16.5m，为简支梁桥，选取1跨30m小箱梁桥进行成桥静动载试验检测。超出25米部分为：30-25=5米 | F35: 孔 | G35: 1 | I35: 0 | J35: P5页表1第2项，2012年9月21日会议纪要第六点 | N35: 21000 | O35: 42000
A36: 2 | B36: 超过25m部分 | F36: 米 | G36: 5 | I36: 0 | N36: 420 | O36: 840
A37: 3 | B37: 简支梁桥动载试验（≤25m） | C37: 动载法 | F37: 孔 | G37: 1 | I37: 0 | N37: =O37*50% -> 9000 | O37: 18000
A38: 4 | B38: 超过25m部分 | F38: 米 | G38: 5 | I38: 0 | N38: 120 | O38: 240
A39: 5 | B39: 桥梁检测车租赁、试验加载设备、支架、电源与照明材料及现场配合人员等费用 | C39: / | F39: 座 | G39: 1 | I39: 0 | N39: 18750 | O39: 37500
A40: 四） | B40: 罗田3#桥
A41: （一） | B41: 基桩工程
A42: 1 | B42: 钻孔抽芯法钻径（101/110mm） | C42: 钻芯法 | D42: 东交函〔2020〕121号，总桩数的2%，且群桩基础每墩不少于1根，每座桥≥2根 | E42: D160桩26根，平均桩长33.2m，D180桩6根，平均桩长37.1m。共32根桩，检测2根。（33.2*2+5+1）*1+（37.1*3+1.8*3+1+1）*1=191.1m | F42: 米 | G42: =(33.2*2+5+1)*1+(37.1*3+1.8*3+1+1)*1 -> 191.1 | I42: 0 | J42: P4页表2第3项 | L42: 按总桩数进行抽芯，共32根桩，修改抽芯数量为3根。 | N42: 160 | O42: 320
A43: （二） | B43: 桥梁静动载试验
A44: 1 | B44: 简支梁桥静载试验（≤25m） | C44: 静载法 | D44: 东交函〔2020〕121号。新建、改建、扩建和加固的中桥、大桥、特大桥及特殊结构桥梁竣（交）工验收前进行试验。（1）表中所列为规范规定的主要加载项目测试费，如需进行附加加载项目测试，可按主要加载项目测试费的50%另计；（2）3孔以下的连续结构按实际孔数计，3孔及以上按3孔计。 | E44: 罗田3#桥全长333.2m，双向6车道，单幅桥宽16.5m，为简支梁桥，选取1跨30m小箱梁桥进行成桥静动载试验检测。超出25米部分为：30-25=5米 | F44: 孔 | G44: 1 | I44: 0 | J44: P5页表1第2项，2012年9月21日会议纪要第六点 | N44: 21000 | O44: 42000
A45: 2 | B45: 超过25m部分 | F45: 米 | G45: 5 | I45: 0 | N45: 420 | O45: 840
A46: 3 | B46: 简支梁桥动载试验（≤25m） | C46: 动载法 | F46: 孔 | G46: 1 | I46: 0 | N46: 9000 | O46: 18000
A47: 4 | B47: 超过25m部分 | F47: 米 | G47: 5 | I47: 0 | N47: 120 | O47: 240
A48: 5 | B48: 桥梁检测车租赁、试验加载设备、支架、电源与照明材料及现场配合人员等费用 | C48: / | F48: 座 | G48: 1 | I48: 0 | N48: 18750 | O48: 37500
A49: 五） | B49: 桥梁预制工程
A50: （一） | B50: 预应力工程
A51: 1 | B51: 预制梁锚下有效预应力检测 | C51: 预应力检测仪 | D51: 东交函〔2020〕121号。每个预制场前3片必检，后续生产的预制梁按2%的比例抽检且不少于2片，所抽检的构件应对所有预应力筋的有效预应力进行检测。 | E51: 本项目预制梁共417片，其中25m边梁18片、25m中梁29片、30m边梁138片、30m中梁232片，检测（414*2%）+3=12片（检测规则中不足一片按一片计） | F51: 根 | G51: 646 | I51: 0 | J51: P18页表1第5项“800元/4根/孔=200元/根" | L51: 该项有修改，本项目中25m小箱梁47片，30m小箱梁370片；以30m梁用量居多，其中25m梁中梁的预应力束为10束48根，30m梁中梁的预应力束为10束54根，即参照30m中梁预应力束更具有代表性。 | N51: 100 | O51: 200
A52: （二） | B52: 单片梁静载试验
A53: 1 | B53: 单片梁荷载试验（≤25m） | C53: 静载法 | D53: 东交函〔2020〕121号。每批单片梁总数抽检1%，且各种断面类型不少于1片。 | E53: 预制梁共417片，有25m和30m两种规格，检测417*1%=4片。 | F53: 片 | G53: 4 | I53: 0 | J53: P5页表1第1项 | L53: 按四舍五入法，计417*1%=4片计。 | N53: 15000 | O53: 30000
A54: 2 | B54: 每增加1m | E54: 超出米数部分：（30-25）*2=10米 | F54: 米 | G54: 10 | I54: 0 | N54: 350 | O54: 700
A55: 3 | B55: 试验加载设备、支架、电源与照明材料及现场配合人员等费用 | C55: / | E55: 共4台班 | F55: 台班 | G55: 4 | I55: 0 | J55: 2014年3月28日会议纪要第二点 | N55: 2000 | O55: 4000
A56: 四 | B56: 隧道工程
A57: 一） | B57: 1#隧道
A58: 1 | B58: 初支仰拱及仰拱回填质量 | C58: 钻芯法 | D58: 东交函〔2020〕121号。采用抽芯法检测，按单洞每500m不少于1处，且不少于3处。 | E58: 1#隧道左、右线长334m，各检测3点，共检测6点。 | F58: 点 | G58: 6 | I58: 0 | J58: P6页表1第3项 | N58: 400 | O58: 800
A59: 2 | B59: 初支锚杆长度、灌浆质量 | C59: 无损检测 | D59: 东交函〔2020〕121号。抽检不少于3%。 | E59: 1#隧道初支锚杆共31272根，检测31272*3%=938根 | F59: 根 | G59: 938 | I59: 0 | J59: P17页表2第5项 | N59: 125 | O59: 250
A60: 3 | B60: 初支管棚钢管的长度、灌浆质量 | C60: 无损检测 | D60: 东交函〔2020〕121号。抽检不少于10%（按单个洞口计） | E60: 1#隧道大管棚共116根，检测116*10%=12根 | F60: 根 | G60: 12 | I60: 0 | J60: P17页表2第5项 | N60: 125 | O60: 250
A61: 4 | B61: 初支砼强度、厚度、密实度 | C61: 钻芯法 | D61: 东交函〔2020〕121号。单洞每100m长检测1点，少于5点时按5点检测。 | E61: 1#隧道左、右线长334m，单洞检测5点，共检测10点。 | F61: 点 | G61: 10 | I61: 0 | J61: P6页表1第3项 | N61: 400 | O61: 800
A62: 二） | B62: 2#隧道
A63: 1 | B63: 初支仰拱及仰拱回填质量 | C63: 钻芯法 | D63: 东交函〔2020〕121号。采用抽芯法检测，按单洞每500m不少于1处，且不少于3处。 | E63: 2#隧道左线长265m，检测3点；右线长245m，检测3点 | F63: 点 | G63: 6 | I63: 0 | J63: P6页表1第3项 | N63: 400 | O63: 800
A64: 2 | B64: 初支锚杆长度、灌浆质量 | C64: 无损检测 | D64: 东交函〔2020〕121号。抽检不少于3%。 | E64: 2#隧道初支锚杆共32120根，检测32120*3%=964根 | F64: 根 | G64: 964 | I64: 0 | J64: P17页表2第5项 | N64: 125 | O64: 250
A65: 3 | B65: 初支管棚钢管的长度、灌浆质量 | C65: 无损检测 | D65: 东交函〔2020〕121号。抽检不少于10%（按单个洞口计） | E65: 2#隧道大管棚共116根，检测116*10%=12根 | F65: 根 | G65: 12 | I65: 0 | J65: P17页表2第5项 | N65: 125 | O65: 250
A66: 4 | B66: 初支砼强度、厚度、密实度 | C66: 钻芯法 | D66: 东交函〔2020〕121号。单洞每100m长检测1点，少于5点时按5点检测。 | E66: 2#隧道左线长265m，右线长245m。单洞检测5点，共检测10点。 | F66: 点 | G66: 10 | I66: 0 | J66: P6页表1第3项 | N66: 400 | O66: 800
A67: 四 | B67: 管道工程
A68: 1 | B68: 雨水管闭水试验检测 | C68: 闭水试验 | D68: 东交函〔2020〕121号，管道内径≤700全线试验，管道内径﹥700按管道井段抽取1/3.试验不合格时在原抽样基础上加倍抽取进行试验，每次试验长度不超过5个连续井段，还要带井试验 | E68: 雨水管中＜700管共3338m，＞700管共254m，检测3338+254/3=3423m | F68: 米 | G68: 3423 | I68: 0 | J68: 东莞市建设工程检测行业参考收费标准（2023版）7.1.1 | N68: 4.10 | O68: 8.20
A69: 2 | B69: 雨水管CCTV检测 | C69: 机器人设备 | D69: 全部检测 | E69: DN600以上雨水管共2687m,检测2687m | F69: 米 | G69: 2687 | I69: =ROUND(G69*H69,0) -> 0 | J69: 东莞市建设工程检测行业参考收费标准（2023版）7.1.2“不含清淤” | N69: =O69*50% -> 10.35 | O69: 20.71
A70: 五 | B70: 小计 | I70: =SUM(I4:I69) -> 0
A71: 六 | B71: 一般工作用车 | E71: 按检测费的4%计算 | I71: =ROUND(I70*4%,0) -> 0
A72: 七 | B72: 合计 | I72: =SUM(I70:I71) -> 0
